{"text_format":"3","workbook":"xlsx","n_sheets":3,"sheets":["Тапсырмалар","Ай көрінісі","Апта көрінісі"],"not_rendered":{"images":1,"defined_names":17},"read":"whole","date_system":"1900"}

{"sheet":"Тапсырмалар","index":0,"n_rows":25,"n_cols":3,"rows_kept":25}
[]
[]
[]
[null,"ТАПСЫРМА","МЕРЗІМІ"]
[null,"1-тапсырма","2016-03-29"]
[null,"2-тапсырма","2016-04-05"]
[null,"3-тапсырма","2016-04-08"]
[null,"4-тапсырма","2016-04-09"]
[null,"5-тапсырма","2016-04-11"]
[null,"6-тапсырма","2016-04-12"]
[null,"7-тапсырма","2016-04-15"]
[null,"8-тапсырма","2016-04-17"]
[null,"9-тапсырма","2016-04-19"]
[null,"10-тапсырма","2016-04-24"]
[null,"11-тапсырма","2016-04-25"]
[null,"12-тапсырма","2016-04-29"]
[null,"13-тапсырма","2016-04-30"]
[null,"14-тапсырма","2016-05-02"]
[null,"15-тапсырма","2016-05-06"]
[null,"16-тапсырма","2016-05-08"]
[null,"17-тапсырма","2016-05-10"]
[null,"18-тапсырма","2016-05-14"]
[null,"19-тапсырма","2016-05-17"]
[null,"20-тапсырма","2016-05-22"]
[null,"21-тапсырма","2016-06-03"]

{"sheet":"Ай көрінісі","index":1,"n_rows":37,"n_cols":8,"rows_kept":37,"merged":[[3,1,3,7]]}
[]
[null,{"$f":"UPPER(CHOOSE(ААйНөм,\"Қаңтар\",\"Ақпан\",\"Наурыз\",\"Сәуір\",\"Мамыр\",\"Маусым\",\"Шілде\",\"Тамыз\",\"Қыркүйек\",\"Қазан\",\"Қараша\",\"Желтоқсан\"))","v":"НАУРЫЗ"},2016,null,null,3]
[]
[null,"АЙ КӨРІНІСІ"]
[null,"ДҮЙСЕНБІ","СЕЙСЕНБІ","СӘРСЕНБІ","БЕЙСЕНБІ","ЖҰМА","СЕНБІ","ЖЕКСЕНБІ"]
[null,{"$f":"IF(WEEKDAY(DATEVALUE(\"1 \"&ААй&\" \"&АйЖыл),2)=COLUMN(A$1),1,IF(LEN(A6)>0,A6+1,\"\"))","v":""},1,2,3,4,5,6]
[null,{"$f":"IF(LEN(B6)=0,\"\",IF(COUNTIF(Тапсырмалар[МЕРЗІМІ],DATE(АйЖыл,ААйНөм,B6))>0,\"Тапсырыс мерзімінің аяқталуы!\",\"\"))","v":""},{"$f":"IF(LEN(C6)=0,\"\",IF(COUNTIF(Тапсырмалар[МЕРЗІМІ],DATE(АйЖыл,ААйНөм,C6))>0,\"Тапсырыс мерзімінің аяқталуы!\",\"\"))","v":""},{"$f":"IF(LEN(D6)=0,\"\",IF(COUNTIF(Тапсырмалар[МЕРЗІМІ],DATE(АйЖыл,ААйНөм,D6))>0,\"Тапсырыс мерзімінің аяқталуы!\",\"\"))","v":""},{"$f":"IF(LEN(E6)=0,\"\",IF(COUNTIF(Тапсырмалар[МЕРЗІМІ],DATE(АйЖыл,ААйНөм,E6))>0,\"Тапсырыс мерзімінің аяқталуы!\",\"\"))","v":""},{"$f":"IF(LEN(F6)=0,\"\",IF(COUNTIF(Тапсырмалар[МЕРЗІМІ],DATE(АйЖыл,ААйНөм,F6))>0,\"Тапсырыс мерзімінің аяқталуы!\",\"\"))","v":""},{"$f":"IF(LEN(G6)=0,\"\",IF(COUNTIF(Тапсырмалар[МЕРЗІМІ],DATE(АйЖыл,ААйНөм,G6))>0,\"Тапсырыс мерзімінің аяқталуы!\",\"\"))","v":""},{"$f":"IF(LEN(H6)=0,\"\",IF(COUNTIF(Тапсырмалар[МЕРЗІМІ],DATE(АйЖыл,ААйНөм,H6))>0,\"Тапсырыс мерзімінің аяқталуы!\",\"\"))","v":""}]
[]
[]
[]
[]
[null,{"$f":"IF(LEN(H6)>0,IF(H6=DAY(DATE(АйЖыл,ААйНөм+1,0)),\"\",H6+1),\"\")","v":7},{"$f":"IF(LEN(B12)>0,IF(B12=DAY(DATE(АйЖыл,ААйНөм+1,0)),\"\",B12+1),\"\")","v":8},9,10,11,12,13]
[null,{"$f":"IF(LEN(B12)=0,\"\",IF(COUNTIF(Тапсырмалар[МЕРЗІМІ],DATE(АйЖыл,ААйНөм,B12))>0,\"Тапсырыс мерзімінің аяқталуы!\",\"\"))","v":""},{"$f":"IF(LEN(C12)=0,\"\",IF(COUNTIF(Тапсырмалар[МЕРЗІМІ],DATE(АйЖыл,ААйНөм,C12))>0,\"Тапсырыс мерзімінің аяқталуы!\",\"\"))","v":""},{"$f":"IF(LEN(D12)=0,\"\",IF(COUNTIF(Тапсырмалар[МЕРЗІМІ],DATE(АйЖыл,ААйНөм,D12))>0,\"Тапсырыс мерзімінің аяқталуы!\",\"\"))","v":""},{"$f":"IF(LEN(E12)=0,\"\",IF(COUNTIF(Тапсырмалар[МЕРЗІМІ],DATE(АйЖыл,ААйНөм,E12))>0,\"Тапсырыс мерзімінің аяқталуы!\",\"\"))","v":""},{"$f":"IF(LEN(F12)=0,\"\",IF(COUNTIF(Тапсырмалар[МЕРЗІМІ],DATE(АйЖыл,ААйНөм,F12))>0,\"Тапсырыс мерзімінің аяқталуы!\",\"\"))","v":""},{"$f":"IF(LEN(G12)=0,\"\",IF(COUNTIF(Тапсырмалар[МЕРЗІМІ],DATE(АйЖыл,ААйНөм,G12))>0,\"Тапсырыс мерзімінің аяқталуы!\",\"\"))","v":""},{"$f":"IF(LEN(H12)=0,\"\",IF(COUNTIF(Тапсырмалар[МЕРЗІМІ],DATE(АйЖыл,ААйНөм,H12))>0,\"Тапсырыс мерзімінің аяқталуы!\",\"\"))","v":""}]
[]
[]
[]
[]
[null,{"$f":"IF(LEN(H12)>0,IF(H12=DAY(DATE(АйЖыл,ААйНөм+1,0)),\"\",H12+1),\"\")","v":14},{"$f":"IF(LEN(B18)>0,IF(B18=DAY(DATE(АйЖыл,ААйНөм+1,0)),\"\",B18+1),\"\")","v":15},16,17,18,19,20]
[null,{"$f":"IF(LEN(B18)=0,\"\",IF(COUNTIF(Тапсырмалар[МЕРЗІМІ],DATE(АйЖыл,ААйНөм,B18))>0,\"Тапсырыс мерзімінің аяқталуы!\",\"\"))","v":""},{"$f":"IF(LEN(C18)=0,\"\",IF(COUNTIF(Тапсырмалар[МЕРЗІМІ],DATE(АйЖыл,ААйНөм,C18))>0,\"Тапсырыс мерзімінің аяқталуы!\",\"\"))","v":""},{"$f":"IF(LEN(D18)=0,\"\",IF(COUNTIF(Тапсырмалар[МЕРЗІМІ],DATE(АйЖыл,ААйНөм,D18))>0,\"Тапсырыс мерзімінің аяқталуы!\",\"\"))","v":""},{"$f":"IF(LEN(E18)=0,\"\",IF(COUNTIF(Тапсырмалар[МЕРЗІМІ],DATE(АйЖыл,ААйНөм,E18))>0,\"Тапсырыс мерзімінің аяқталуы!\",\"\"))","v":""},{"$f":"IF(LEN(F18)=0,\"\",IF(COUNTIF(Тапсырмалар[МЕРЗІМІ],DATE(АйЖыл,ААйНөм,F18))>0,\"Тапсырыс мерзімінің аяқталуы!\",\"\"))","v":""},{"$f":"IF(LEN(G18)=0,\"\",IF(COUNTIF(Тапсырмалар[МЕРЗІМІ],DATE(АйЖыл,ААйНөм,G18))>0,\"Тапсырыс мерзімінің аяқталуы!\",\"\"))","v":""},{"$f":"IF(LEN(H18)=0,\"\",IF(COUNTIF(Тапсырмалар[МЕРЗІМІ],DATE(АйЖыл,ААйНөм,H18))>0,\"Тапсырыс мерзімінің аяқталуы!\",\"\"))","v":""}]
[]
[]
[]
[]
[null,{"$f":"IF(LEN(H18)>0,IF(H18=DAY(DATE(АйЖыл,ААйНөм+1,0)),\"\",H18+1),\"\")","v":21},{"$f":"IF(LEN(B24)>0,IF(B24=DAY(DATE(АйЖыл,ААйНөм+1,0)),\"\",B24+1),\"\")","v":22},23,24,25,26,27]
[null,{"$f":"IF(LEN(B24)=0,\"\",IF(COUNTIF(Тапсырмалар[МЕРЗІМІ],DATE(АйЖыл,ААйНөм,B24))>0,\"Тапсырыс мерзімінің аяқталуы!\",\"\"))","v":""},{"$f":"IF(LEN(C24)=0,\"\",IF(COUNTIF(Тапсырмалар[МЕРЗІМІ],DATE(АйЖыл,ААйНөм,C24))>0,\"Тапсырыс мерзімінің аяқталуы!\",\"\"))","v":""},{"$f":"IF(LEN(D24)=0,\"\",IF(COUNTIF(Тапсырмалар[МЕРЗІМІ],DATE(АйЖыл,ААйНөм,D24))>0,\"Тапсырыс мерзімінің аяқталуы!\",\"\"))","v":""},{"$f":"IF(LEN(E24)=0,\"\",IF(COUNTIF(Тапсырмалар[МЕРЗІМІ],DATE(АйЖыл,ААйНөм,E24))>0,\"Тапсырыс мерзімінің аяқталуы!\",\"\"))","v":""},{"$f":"IF(LEN(F24)=0,\"\",IF(COUNTIF(Тапсырмалар[МЕРЗІМІ],DATE(АйЖыл,ААйНөм,F24))>0,\"Тапсырыс мерзімінің аяқталуы!\",\"\"))","v":""},{"$f":"IF(LEN(G24)=0,\"\",IF(COUNTIF(Тапсырмалар[МЕРЗІМІ],DATE(АйЖыл,ААйНөм,G24))>0,\"Тапсырыс мерзімінің аяқталуы!\",\"\"))","v":""},{"$f":"IF(LEN(H24)=0,\"\",IF(COUNTIF(Тапсырмалар[МЕРЗІМІ],DATE(АйЖыл,ААйНөм,H24))>0,\"Тапсырыс мерзімінің аяқталуы!\",\"\"))","v":""}]
[]
[]
[]
[]
[null,{"$f":"IF(LEN(H24)>0,IF(H24=DAY(DATE(АйЖыл,ААйНөм+1,0)),\"\",H24+1),\"\")","v":28},{"$f":"IF(LEN(B30)>0,IF(B30=DAY(DATE(АйЖыл,ААйНөм+1,0)),\"\",B30+1),\"\")","v":29},30,31,"","",""]
[null,{"$f":"IF(LEN(B30)=0,\"\",IF(COUNTIF(Тапсырмалар[МЕРЗІМІ],DATE(АйЖыл,ААйНөм,B30))>0,\"Тапсырыс мерзімінің аяқталуы!\",\"\"))","v":""},{"$f":"IF(LEN(C30)=0,\"\",IF(COUNTIF(Тапсырмалар[МЕРЗІМІ],DATE(АйЖыл,ААйНөм,C30))>0,\"Тапсырыс мерзімінің аяқталуы!\",\"\"))","v":"Тапсырыс мерзімінің аяқталуы!"},{"$f":"IF(LEN(D30)=0,\"\",IF(COUNTIF(Тапсырмалар[МЕРЗІМІ],DATE(АйЖыл,ААйНөм,D30))>0,\"Тапсырыс мерзімінің аяқталуы!\",\"\"))","v":""},{"$f":"IF(LEN(E30)=0,\"\",IF(COUNTIF(Тапсырмалар[МЕРЗІМІ],DATE(АйЖыл,ААйНөм,E30))>0,\"Тапсырыс мерзімінің аяқталуы!\",\"\"))","v":""},{"$f":"IF(LEN(F30)=0,\"\",IF(COUNTIF(Тапсырмалар[МЕРЗІМІ],DATE(АйЖыл,ААйНөм,F30))>0,\"Тапсырыс мерзімінің аяқталуы!\",\"\"))","v":""},{"$f":"IF(LEN(G30)=0,\"\",IF(COUNTIF(Тапсырмалар[МЕРЗІМІ],DATE(АйЖыл,ААйНөм,G30))>0,\"Тапсырыс мерзімінің аяқталуы!\",\"\"))","v":""},{"$f":"IF(LEN(H30)=0,\"\",IF(COUNTIF(Тапсырмалар[МЕРЗІМІ],DATE(АйЖыл,ААйНөм,H30))>0,\"Тапсырыс мерзімінің аяқталуы!\",\"\"))","v":""}]
[]
[]
[]
[]
[null,{"$f":"IF(LEN(H30)>0,IF(H30=DAY(DATE(АйЖыл,ААйНөм+1,0)),\"\",H30+1),\"\")","v":""},{"$f":"IF(LEN(B36)>0,IF(B36=DAY(DATE(АйЖыл,ААйНөм+1,0)),\"\",B36+1),\"\")","v":""},"","","","",""]
[null,{"$f":"IF(LEN(B36)=0,\"\",IF(COUNTIF(Тапсырмалар[МЕРЗІМІ],DATE(АйЖыл,ААйНөм,B36))>0,\"Тапсырыс мерзімінің аяқталуы!\",\"\"))","v":""},{"$f":"IF(LEN(C36)=0,\"\",IF(COUNTIF(Тапсырмалар[МЕРЗІМІ],DATE(АйЖыл,ААйНөм,C36))>0,\"Тапсырыс мерзімінің аяқталуы!\",\"\"))","v":""},{"$f":"IF(LEN(D36)=0,\"\",IF(COUNTIF(Тапсырмалар[МЕРЗІМІ],DATE(АйЖыл,ААйНөм,D36))>0,\"Тапсырыс мерзімінің аяқталуы!\",\"\"))","v":""},{"$f":"IF(LEN(E36)=0,\"\",IF(COUNTIF(Тапсырмалар[МЕРЗІМІ],DATE(АйЖыл,ААйНөм,E36))>0,\"Тапсырыс мерзімінің аяқталуы!\",\"\"))","v":""},{"$f":"IF(LEN(F36)=0,\"\",IF(COUNTIF(Тапсырмалар[МЕРЗІМІ],DATE(АйЖыл,ААйНөм,F36))>0,\"Тапсырыс мерзімінің аяқталуы!\",\"\"))","v":""},{"$f":"IF(LEN(G36)=0,\"\",IF(COUNTIF(Тапсырмалар[МЕРЗІМІ],DATE(АйЖыл,ААйНөм,G36))>0,\"Тапсырыс мерзімінің аяқталуы!\",\"\"))","v":""},{"$f":"IF(LEN(H36)=0,\"\",IF(COUNTIF(Тапсырмалар[МЕРЗІМІ],DATE(АйЖыл,ААйНөм,H36))>0,\"Тапсырыс мерзімінің аяқталуы!\",\"\"))","v":""}]

{"sheet":"Апта көрінісі","index":2,"n_rows":31,"n_cols":8,"rows_kept":31,"merged":[[3,1,3,7]]}
[]
[null,{"$f":"UPPER(CHOOSE(АптаАйНөм,\"Қаңтар\",\"Ақпан\",\"Наурыз\",\"Сәуір\",\"Мамыр\",\"Маусым\",\"Шілде\",\"Тамыз\",\"Қыркүйек\",\"Қазан\",\"Қараша\",\"Желтоқсан\"))","v":"НАУРЫЗ"},2016,{"$f":"UPPER(CHOOSE(ААпта,\"1-апта\",\"2-апта\",\"3-апта\",\"4-апта\", \"5-апта\", \"6-апта\"))","v":"5-АПТА"},5,3]
[]
[null,"АПТА КӨРІНІСІ"]
[null,{"$f":"IF(WEEKDAY(DATEVALUE(\"1 \"&АптаАй&\" \"&АптаЖыл),2)=COLUMN(A$1),1,IF(LEN(A5)>0,A5+1,\"\"))","v":""},1,2,3,4,5,6]
[null,{"$f":"IF(LEN(H5)>0,IF(H5=АйСоңғыКүні_Апта,\"\",H5+1),\"\")","v":7},{"$f":"IF(LEN(B6)>0,IF(B6=АйСоңғыКүні_Апта,\"\",B6+1),\"\")","v":8},9,10,11,12,13]
[null,{"$f":"IF(LEN(H6)>0,IF(H6=АйСоңғыКүні_Апта,\"\",H6+1),\"\")","v":14},15,16,17,18,19,20]
[null,{"$f":"IF(LEN(H7)>0,IF(H7=АйСоңғыКүні_Апта,\"\",H7+1),\"\")","v":21},22,23,24,25,26,27]
[null,{"$f":"IF(LEN(H8)>0,IF(H8=АйСоңғыКүні_Апта,\"\",H8+1),\"\")","v":28},29,30,31,"","",""]
[null,{"$f":"IF(LEN(H9)>0,IF(H9=АйСоңғыКүні_Апта,\"\",H9+1),\"\")","v":""},"","","","","",""]
[null,"ДҮЙСЕНБІ","СЕЙСЕНБІ","СӘРСЕНБІ","БЕЙСЕНБІ","ЖҰМА","СЕНБІ","ЖЕКСЕНБІ"]
[null,{"$f":"IF(B14=\"\",IF(AND(ISNUMBER(A12),A12<АйСоңғыКүні_Апта),A12+1,\"\"),IF(B14<=7,\"\",INDEX(АптаАйКөрінісі,ААпта,COLUMN(A$1))-7))","v":21},22,23,24,25,26,27]
[null,{"$f":"IF(LEN(B12)=0,\"\",IF(COUNTIF(Тапсырмалар[МЕРЗІМІ],DATE(АптаЖыл,АптаАйНөм,B12))>0,\"Тапсырыс мерзімінің аяқталуы!\",\"\"))","v":""},{"$f":"IF(LEN(C12)=0,\"\",IF(COUNTIF(Тапсырмалар[МЕРЗІМІ],DATE(АптаЖыл,АптаАйНөм,C12))>0,\"Тапсырыс мерзімінің аяқталуы!\",\"\"))","v":""},{"$f":"IF(LEN(D12)=0,\"\",IF(COUNTIF(Тапсырмалар[МЕРЗІМІ],DATE(АптаЖыл,АптаАйНөм,D12))>0,\"Тапсырыс мерзімінің аяқталуы!\",\"\"))","v":""},{"$f":"IF(LEN(E12)=0,\"\",IF(COUNTIF(Тапсырмалар[МЕРЗІМІ],DATE(АптаЖыл,АптаАйНөм,E12))>0,\"Тапсырыс мерзімінің аяқталуы!\",\"\"))","v":""},{"$f":"IF(LEN(F12)=0,\"\",IF(COUNTIF(Тапсырмалар[МЕРЗІМІ],DATE(АптаЖыл,АптаАйНөм,F12))>0,\"Тапсырыс мерзімінің аяқталуы!\",\"\"))","v":""},{"$f":"IF(LEN(G12)=0,\"\",IF(COUNTIF(Тапсырмалар[МЕРЗІМІ],DATE(АптаЖыл,АптаАйНөм,G12))>0,\"Тапсырыс мерзімінің аяқталуы!\",\"\"))","v":""},{"$f":"IF(LEN(H12)=0,\"\",IF(COUNTIF(Тапсырмалар[МЕРЗІМІ],DATE(АптаЖыл,АптаАйНөм,H12))>0,\"Тапсырыс мерзімінің аяқталуы!\",\"\"))","v":""}]
[null,{"$f":"INDEX(АптаАйКөрінісі,ААпта,COLUMN(A$1))","v":28},29,30,31,"","",""]
[null,{"$f":"IF(LEN(B14)=0,\"\",IF(COUNTIF(Тапсырмалар[МЕРЗІМІ],DATE(АптаЖыл,АптаАйНөм,B14))>0,\"Тапсырыс мерзімінің аяқталуы!\",\"\"))","v":""},{"$f":"IF(LEN(C14)=0,\"\",IF(COUNTIF(Тапсырмалар[МЕРЗІМІ],DATE(АптаЖыл,АптаАйНөм,C14))>0,\"Тапсырыс мерзімінің аяқталуы!\",\"\"))","v":"Тапсырыс мерзімінің аяқталуы!"},{"$f":"IF(LEN(D14)=0,\"\",IF(COUNTIF(Тапсырмалар[МЕРЗІМІ],DATE(АптаЖыл,АптаАйНөм,D14))>0,\"Тапсырыс мерзімінің аяқталуы!\",\"\"))","v":""},{"$f":"IF(LEN(E14)=0,\"\",IF(COUNTIF(Тапсырмалар[МЕРЗІМІ],DATE(АптаЖыл,АптаАйНөм,E14))>0,\"Тапсырыс мерзімінің аяқталуы!\",\"\"))","v":""},{"$f":"IF(LEN(F14)=0,\"\",IF(COUNTIF(Тапсырмалар[МЕРЗІМІ],DATE(АптаЖыл,АптаАйНөм,F14))>0,\"Тапсырыс мерзімінің аяқталуы!\",\"\"))","v":""},{"$f":"IF(LEN(G14)=0,\"\",IF(COUNTIF(Тапсырмалар[МЕРЗІМІ],DATE(АптаЖыл,АптаАйНөм,G14))>0,\"Тапсырыс мерзімінің аяқталуы!\",\"\"))","v":""},{"$f":"IF(LEN(H14)=0,\"\",IF(COUNTIF(Тапсырмалар[МЕРЗІМІ],DATE(АптаЖыл,АптаАйНөм,H14))>0,\"Тапсырыс мерзімінің аяқталуы!\",\"\"))","v":""}]
{"$rows_empty":14}
[null,{"$f":"IF(B14=\"\",IF(AND(ISNUMBER(H14),H14<АйСоңғыКүні_Апта),H14+1,\"\"),IF(B14+7>АйСоңғыКүні_Апта,\"\",INDEX(АптаАйКөрінісі,ААпта,COLUMN(A$1))+7))","v":""},{"$f":"IF(C14=\"\",IF(AND(ISNUMBER(B30),B30<АйСоңғыКүні_Апта),B30+1,\"\"),IF(C14+7>АйСоңғыКүні_Апта,\"\",INDEX(АптаАйКөрінісі,ААпта,COLUMN(B$1))+7))","v":""},"","","","",""]
[null,{"$f":"IF(LEN(B30)=0,\"\",IF(COUNTIF(Тапсырмалар[МЕРЗІМІ],DATE(АптаЖыл,АптаАйНөм,B30))>0,\"Тапсырыс мерзімінің аяқталуы!\",\"\"))","v":""},{"$f":"IF(LEN(C30)=0,\"\",IF(COUNTIF(Тапсырмалар[МЕРЗІМІ],DATE(АптаЖыл,АптаАйНөм,C30))>0,\"Тапсырыс мерзімінің аяқталуы!\",\"\"))","v":""},{"$f":"IF(LEN(D30)=0,\"\",IF(COUNTIF(Тапсырмалар[МЕРЗІМІ],DATE(АптаЖыл,АптаАйНөм,D30))>0,\"Тапсырыс мерзімінің аяқталуы!\",\"\"))","v":""},{"$f":"IF(LEN(E30)=0,\"\",IF(COUNTIF(Тапсырмалар[МЕРЗІМІ],DATE(АптаЖыл,АптаАйНөм,E30))>0,\"Тапсырыс мерзімінің аяқталуы!\",\"\"))","v":""},{"$f":"IF(LEN(F30)=0,\"\",IF(COUNTIF(Тапсырмалар[МЕРЗІМІ],DATE(АптаЖыл,АптаАйНөм,F30))>0,\"Тапсырыс мерзімінің аяқталуы!\",\"\"))","v":""},{"$f":"IF(LEN(G30)=0,\"\",IF(COUNTIF(Тапсырмалар[МЕРЗІМІ],DATE(АптаЖыл,АптаАйНөм,G30))>0,\"Тапсырыс мерзімінің аяқталуы!\",\"\"))","v":""},{"$f":"IF(LEN(H30)=0,\"\",IF(COUNTIF(Тапсырмалар[МЕРЗІМІ],DATE(АптаЖыл,АптаАйНөм,H30))>0,\"Тапсырыс мерзімінің аяқталуы!\",\"\"))","v":""}]